Cogmind - Beta 15 @@@ ROGUE MODE // 2025.05.26 @ 00:42:07 Player: Andru7428 Result: Destroyed by QD-FID(R) with Subdweller Machine Gun Performance ------------- Evolutions (0) 0 Regions Visited (2) 400 Robots Destroyed (23) 115 Value Destroyed (635) 635 Prototype IDs (13) 260 Alien Tech Used (0) 0 Bonus (0) 0 TOTAL SCORE: 1410 Bonus ------- None Cogmind --------- Core Integrity 0/250 Matter 174/300 Energy 200/200 System Corruption 0% Temperature Cool (0) Movement Rolling (120) Ox1 Location -10/Subcaves Parts ------- > --- POWER (1) -------- Subdweller Power Source > --- PROPULSION (2) --- Subdweller Monowheel > --- UTILITY (2) ------ Scrap Shield > --- WEAPON (2) ------- Mace Makeshift Sword > --- INVENTORY (5) ---- Large Storage Unit Rainbow Chip Assault Rifle Assault Rifle Shrapnel Trap Peak State ------------ > --- POWER ------------ Subdweller Power Source > --- PROPULSION ------- Subdweller Monowheel > --- UTILITY ---------- Scrap Shield > --- WEAPON ----------- Mace Makeshift Sword > --- INVENTORY -------- Large Storage Unit Rainbow Chip Assault Rifle Assault Rifle Shrapnel Trap [Rating: 15] Favorites ----------- Power Ion Engine Engine Ion Engine Propulsion Improved Aluminum Leg Treads Light Treads Leg Improved Aluminum Leg Wheel Subdweller Monowheel Utility Medium Storage Unit Device Seismic Detector Storage Medium Storage Unit Protection Light Armor Plating Weapon Mace Energy Gun Small Laser Launcher Subdweller Shrapnel Launcher Impact Weapon Mace Slashing Weapon Makeshift Sword Build | -11 -10 -10 ------- Run | Yrd Mat Sub Slots Evolved . | . . . Power . | . . . Propulsion . | . . . Utility . | . . . Weapon . | . . . Parts Attached 26 | 9 7 10 Power 3 | 1 . 2 Engine 3 | 1 . 2 Core . | . . . Reactor . | . . . Propulsion 7 | 2 2 3 Treads 2 | 2 . . Leg 4 | . 2 2 Wheel 1 | . . 1 Hover . | . . . Flight . | . . . Utility 10 | 4 3 3 Device 3 | 3 . . Storage 3 | 1 2 . Processor . | . . . Hackware . | . . . Protection 4 | . 1 3 Artifact . | . . . Weapon 6 | 2 2 2 Energy Gun 2 | 2 . . Energy Cannon . | . . . Ballistic Gun . | . . . Ballistic Cannon . | . . . Launcher 1 | . . 1 Special Weapon . | . . . Impact Weapon 2 | . 2 . Slashing Weapon 1 | . . 1 Piercing Weapon . | . . . Special Melee Weapon . | . . . Unidentified Prototypes . | . . . Parts Lost 12 | . 1 11 Power 2 | . . 2 Propulsion 4 | . . 4 Utility 4 | . 1 3 Weapon 2 | . . 2 Highest Loss Streak 7 | . 1 7 To Critical Strikes . | . . . Average Backups 7 | 4 8 6 Power . | . 1 . Propulsion 1 | 2 3 . Utility 2 | . 2 2 Weapon 2 | 1 1 2 Tool/Special . | . . . Unused Backups 11 | . 8 3 Power . | . . . Propulsion 7 | . 7 . Utility 1 | . . 1 Weapon 3 | . 1 2 Tool/Special . | . . . Average Slot Usage (%) 83 | . 99 70 Engine 9 | . 14 6 Treads 1 | . 3 . Leg 17 | . 24 12 Wheel 4 | . . 7 Device 3 | . 8 . Storage 12 | . 14 10 Protection 7 | . 4 9 Energy Gun 2 | . 6 . Impact Weapon 21 | . 21 20 Slashing Weapon 1 | . . 3 Peak Build Rating 15 | 9 12 15 Average Rating 10 | 4 11 10 On Entrance 6 | . 7 12 Naked Turns . | . . . Heaviest Build 30 | 14 30 27 Greatest Support 40 | 40 40 26 Greatest Overweight (x) 3 | . 1 3 Average Overweight (x) . | . . . Largest Inventory Capacity 15 | 8 15 10 Average Capacity 8 | 7 8 8 Most Carried 9 | 7 9 9 Average Carried 7 | 4 8 7 Final Capacity 10 | 8 10 5 Final Carried 9 | 7 9 5 Class Distribution -------------------- 98% | Mutant Dominant Class ---------------- Mutant | -10/Materials Mutant | -10/Subcaves Resources | -11 -10 -10 ----------- Run | Yrd Mat Sub Matter Collected 464 | 290 80 94 Remotely 10 | 10 . . Salvage Created 706 | 104 363 239 Parts 22 | 4 9 9 Haulers Intercepted 2 | . 2 . Recyclers Shooed . | . . . Parts Field Recycled . | . . . Retrieved Matter . | . . . Parts Self-Destructed . | . . . Prevented . | . . . Kills | -11 -10 -10 ------- Run | Yrd Mat Sub Combat Hostiles Destroyed 17 | . 8 9 Melee 7 | . 3 4 AOE 1 | . . 1 Classes Destroyed 7 | 2 4 1 Tunneler 1 | 1 . . Hauler 2 | . 2 . Recycler 1 | 1 . . Watcher 2 | . 2 . Swarmer 3 | . 3 . Grunt 5 | . 5 . Subdweller 9 | . . 9 Best Kill Streak 3 | 2 3 2 Combat Bots Only 3 | . 3 2 Max Kills in Single Turn 1 | 1 1 1 Gunslinging . | . . . Exploded 1 | . . 1 Melee 1 | . 1 1 Uniques/NPCs Destroyed . | . . . Combat | -11 -10 -10 -------- Run | Yrd Mat Sub Hostile Shots Fired 92 | . 27 65 Missed 32 | . 6 26 Hits 60 | . 21 39 Projectile 60 | . 21 39 AOE 7 | . . 7 Damage Taken 1518 | . 197 1321 Core 251 | . 32 219 Absorbed by Shields . | . . . Core Remaining (%) 100 | 100 . . Volleys Fired 10 | 2 1 7 Largest 2 | 2 2 1 Hottest 90 | 90 90 40 Shots Fired 13 | 4 2 7 Gun 6 | 4 2 . Cannon . | . . . Launcher 7 | . . 7 Special . | . . . Kinetic 7 | . . 7 Thermal 6 | 4 2 . Explosive . | . . . Electromagnetic . | . . . Robot Hit Streak 5 | 1 3 5 Robot Miss Streak 2 | 2 . 1 Penetration Max . | . . . Secondary Targets . | . . . Shots Hit Robots 63 | 2 23 38 Core Hits 15 | 1 3 11 Critical Kills . | . . . Critical Parts Destroyed 11 | . 6 5 Critical Strikes 11 | . 6 5 Smash 11 | . 6 5 Melee Attacks 111 | . 44 67 Impact 104 | . 44 60 Slashing 7 | . . 7 Piercing . | . . . Sneak Attacks 1 | . 1 . Combat Hostiles . | . . . Follow-up Attacks 9 | . 4 5 Damage Inflicted 2245 | 23 699 1523 Guns 47 | 23 24 . Cannons . | . . . Explosions 480 | . . 480 Melee 1718 | . 675 1043 Ramming . | . . . Kinetic 480 | . . 480 Thermal 47 | 23 24 . Explosive . | . . . Electromagnetic . | . . . Impact 1718 | . 675 1043 Slashing . | . . . Piercing . | . . . Highest Corruption . | . . . Average Corruption . | . . . Corruption Purged . | . . . Corruption Blocked . | . . . Overload Shots . | . . . Overflow Damage 487 | . 268 219 Projectiles . | . . . Explosions 3 | . . 3 Melee 484 | . 268 216 Knockbacks 14 | . 3 11 Impact 14 | . 3 11 Kinetic . | . . . Secondary . | . . . Self-Inflicted Damage 47 | . . 47 Shots 1 | . . 1 Rammed . | . . . Targets Rammed 1 | 1 . . Kicked . | . . . Crushed 1 | 1 . . Highest Temperature 60 | 60 30 . Average Temperature 27 | 31 18 . Received Heat Transfer 303 | . 48 255 Siege Activations . | . . . Martial Activations . | . . . Shielding Activations . | . . . Robots Disrupted . | . . . Combat Hostiles . | . . . Robots Corrupted 11 | . 7 4 Combat Hostiles 9 | . 5 4 Parts Fried 11 | . 9 2 Impact Corruptions 20 | . 14 6 Robots Melted . | . . . Combat Hostiles . | . . . Parts Melted . | . . . Heat Transferred 124 | 62 62 . Parts Sabotaged . | . . . Parts Stolen . | . . . Parts Stripped . | . . . Power Chain Reactions . | . . . Alert | -11 -10 -10 ------- Run | Yrd Mat Sub Maximum Alert Level . | . . . Low Security (%) 100 | 100 100 . Level 1 . | . . . Level 2 . | . . . Level 3 . | . . . Level 4 . | . . . Level 5 . | . . . High Security . | . . . Max Security . | . . . Peak Influence 79 | 5 79 . Initial . | . . . Average 26 | . 29 . Influence Increases 342 | 10 332 . Destroy 0b10 Robot/C 160 | . 160 . Destroy 0b10 Robot/NC 30 | 10 20 . Destroy Leader 48 | . 48 . Successful Hack 37 | . 37 . Destroy Structure 7 | . 7 . Lose Combat Pursuer 60 | . 60 . Influence Decreases 342 | 10 325 7 Entered New Map 4 | . . 4 Time Decay 328 | 10 315 3 Lost Part 10 | . 10 . Squads Dispatched 3 | . 3 . Investigation . | . . . Extermination . | . . . Reinforcement 3 | . 3 . Assault . | . . . Garrison . | . . . Intercept . | . . . Searches Triggered . | . . . Construction Impeded . | . . . Haulers Reinforced . | . . . Active Scanning Responses . | . . . Cargo Convoy Interrupts . | . . . Stealth | -11 -10 -10 --------- Run | Yrd Mat Sub Distress Signals 2 | . 2 . Communications Jammed . | . . . Distress Signals . | . . . Times Spotted 35 | . 21 14 Peak Tracking Total 4 | . 4 3 Tactical Retreats 4 | . 4 . Traps | -11 -10 -10 ------- Run | Yrd Mat Sub Traps Triggered 1 | . 1 . Indirectly . | . . . Trap Hack Attempts . | . . . Triggered . | . . . Disarmed . | . . . Reprogrammed . | . . . Reused . | . . . Traps Extracted . | . . . Installed . | . . . Triggered . | . . . Most Traps Carried 1 | . . 1 Machines | -11 -10 -10 ---------- Run | Yrd Mat Sub Machines Disabled 1 | . . 1 Max in Single Turn 1 | . . 1 Machines Repaired . | . . . Machines Dismantled . | . . . Machines Sabotaged . | . . . Overloaded Fab Kills . | . . . Hacking | -11 -10 -10 --------- Run | Yrd Mat Sub Machines Accessed 8 | . 6 2 Terminals 5 | . 5 . Fabricators . | . . . Repair Stations . | . . . Recycling Units 1 | . 1 . Scanalyzers . | . . . Garrison Access . | . . . Total Hacks 30 | . 28 2 Successful 19 | . 17 2 Failed 11 | . 11 . Catastrophic . | . . . Database Lockouts . | . . . Manual 22 | . 22 . Terminals 25 | . 25 . Fabricators . | . . . Repair Stations . | . . . Recycling Units 3 | . 3 . Scanalyzers . | . . . Garrison Access . | . . . Terminal Hacks 10 | . 8 2 Part Schematic 1 | . 1 . Robot Analysis 2 | . 2 . Prototype ID Bank 1 | . 1 . Open Door 1 | . . 1 Branch Access Points 1 | . 1 . Locate Traps 2 | . 2 . Recall Reinforcements 1 | . 1 . Proto ID Catalog 1 | . . 1 Fabricator Hacks . | . . . Repair Station Hacks . | . . . Recycling Unit Hacks . | . . . Scanalyzer . | . . . Garrison Access Hacks . | . . . Unauthorized Hacks 9 | . 9 . Terminals 9 | . 9 . Botnet 3 | . 3 . Operators 1 | . 1 . Skim 5 | . 5 . Fabricators . | . . . Repair Stations . | . . . Recycling Units . | . . . Scanalyzers . | . . . Garrison Access . | . . . Data Cores Recovered . | . . . Used . | . . . Hacking Detections 6 | . 6 . Full Trace Events . | . . . Feedback Events . | . . . Feedback Blocked . | . . . Robot Schematics Acquired . | . . . Robots Built . | . . . Authchips . | . . . Time . | . . . Total Robot Build Rating . | . . . Part Schematics Acquired 1 | . 1 . Parts Built . | . . . Authchips . | . . . Time . | . . . Total Part Build Rating . | . . . Parts Repaired . | . . . Time . | . . . Parts Recycled . | . . . Recycled Matter . | . . . Retrieved Matter . | . . . Retrieved Components . | . . . Parts Scanalyzed . | . . . Part Schematics Acquired . | . . . Parts Damaged . | . . . Bothacking | -11 -10 -10 ------------ Run | Yrd Mat Sub Used RIF Installer . | . . . Robots Hacked . | . . . Non-combat . | . . . Combat . | . . . Robot Hacks Applied . | . . . Relay Couplers Released . | . . . Fabnet Peak Effective % . | . . . Robots Rewired . | . . . Allies Hacked . | . . . Hacks Repelled . | . . . Allies | -11 -10 -10 -------- Run | Yrd Mat Sub Total Allies . | . . . Largest Group . | . . . Highest-Rated Group . | . . . Highest-Rated Ally . | . . . Total Orders . | . . . Ally Attacks . | . . . Total Damage . | . . . Kills . | . . . Allies Corrupted . | . . . Allies Melted . | . . . Intel | -11 -10 -10 ------- Run | Yrd Mat Sub Active Infowar (turns) 668 | 24 644 . Terrain 8 | 8 . . Seismic 660 | 16 644 . Robot Analysis Total 2 | . 2 . Derelict Logs Recovered . | . . . Drone Launches . | . . . Drone Recoveries . | . . . Exploration | -11 -10 -10 ------------- Run | Yrd Mat Sub Turns Passed 2436 | 112 1014 1310 Spaces Moved 1490 | 54 524 912 Core 3 | 2 . 1 Treads 133 | 52 81 . Legs 810 | . 443 367 Wheels 544 | . . 544 Hover . | . . . Flight . | . . . Fastest Speed 50 | 50 120 110 Average Speed 121 | 155 126 117 Slowest Speed 200 | 160 190 200 Overloaded Moves . | . . . Propulsion Burnouts . | . . . Robots Hopped . | . . . Potential Cave-ins . | . . . Cave-ins Triggered . | . . . Exploration Rate (%) 46 | 5 85 48 Regions Visited 2 Branch Regions 1 Pre-discovered Areas . | . . . Known Exits Taken 1 | . 1 . Unknown Exits Taken 1 | 1 . . Scrap Searched 7 | . . 7 Spaces Dug 18 | . 7 11 Terrain Destroyed 52 | . 7 45 Melee 18 | . 7 11 Projectile . | . . . AOE 34 | . . 34 Terrain Rammed . | . . . Walls Destroyed . | . . . Machines Disabled . | . . . Actions | -11 -10 -10 --------- Run | Yrd Mat Sub Total 1920 | 73 808 1039 Wait 257 | . 216 41 Move 1488 | 53 523 912 Hop . | . . . Pick Up 26 | 8 12 6 Fast Attach 10 | 6 2 2 Attach 10 | 1 1 8 Detach . | . . . Swap 8 | 2 5 1 Drop 11 | . 10 1 Fire 10 | 2 1 7 Melee 99 | . 38 61 Ram . | . . . Kick . | . . . Crush 1 | 1 . . Escape Stasis . | . . . Rewire . | . . . Trap . | . . . Miscellaneous . | . . . Route ------- -11/Scrapyard -10/Materials (discovered 6 exits: *Mat x3 / *Min x2 / *Sub) -10/Subcaves History --------- Turn | Location | Event 6 | -11/Scrapyard | Discovered new exit (range 15) 113 | -11/Scrapyard | Entered Materials 287 | -10/Materials | Discovered new exit (range 16) 316 | -10/Materials | Build established: Mutant 527 | -10/Materials | Discovered new exit (range 15) 705 | -10/Materials | Discovered new exit (range 7) 792 | -10/Materials | Identified exit to Mines 819 | -10/Materials | Discovered new exit (range 15) 869 | -10/Materials | Identified exit to Materials 869 | -10/Materials | Identified exit to Subcaves 1127 | -10/Materials | Entered Subcaves 1128 | -10/Subcaves | Approached by a straggling Scientist 1245 | -10/Subcaves | Ambushed by Subdweller buried in earth 1495 | -10/Subcaves | Disturbed a concealed Subdweller 1502 | -10/Subcaves | Disturbed a concealed Subdweller 1522 | -10/Subcaves | Disturbed a concealed Subdweller 1548 | -10/Subcaves | Lost 3 parts (1p1n1u) 1713 | -10/Subcaves | Core integrity fell below 50% 1716 | -10/Subcaves | Ambushed by Subdweller buried in earth 1730 | -10/Subcaves | Core integrity fell below 20% 1762 | -10/Subcaves | Lost 7 parts (1p2n2u2w) 1866 | -10/Subcaves | Visited 4L-MR0's lab 1876 | -10/Subcaves | Found Rainbow Chip 2437 | -10/Subcaves | Destroyed by QD-FID(R) with Subdweller Machine Gun Last Messages --------------- Sealed Heavy Doors opened. 02112_ Sneak attack on RH-ULV(R). 02112_ RH-ULV(R) suffers critical hit (Smash). 02112_ Destroyed Sub. Optics. 02112_ RH-ULV(R) system corrupted by crushing effect. 02112_ RH-ULV(R) knocked back. 02131_ Dropped Med. Storage Unit. 02132_ Acquired Scrap Shield. 02137_ Acquired Assault Rifle. 02332_ I4-D9G(R) knocked back. 02332_ I4-D9G(R) destroyed. 02336_ Acquired 24 matter. 02393_ WE-C1M(R) knocked back. 02397_ WE-C1M(R) destroyed. 02400_ Acquired 35 matter. 02409_ Acquired Sub. Power Source. Map ----- +----------------------------------------------------+ | ?????????????????????????????????????????????????? | | ?????????????????????????????????????????????????? | | ?????????????????????????????????????????????????? | | ?????????????????????????????????????????????????? | | ?????????????????????????????????????????????????? | | ?????????????????????????????????????????????????? | | ?????????????????????????????????????????????????? | | ?????????????????????????????????????????????????? | | ?????????????????????????????????????????????????? | | ?????????????????????????????????????????????????? | | ?????????????????????????????????????????????????? | | ?????????????????????????????????????????????????? | | ?????????????????????????????????????????????????? | | ?????????????????????????????????????????????????? | | ?????????????????????????????????????????????????? | | ?????????????????????????????????????????????????? | | ?????????????????????????????????????????????????? | | ?????????????????????????????????????????????????? | | ???????????????????????????#####?????????????????? | | ??????????????????????????## ##????????????????? | | ??????????????????????#???# ##???????????????? | | ??????????????????????#$?### #########???????? | | ??????????????????????#$?# #< ## ######### | | ??????????????????????#$ # ### | | ??????????????????????#